[Event "Early-Titled-Tuesday-Blitz-May-07-2024"]
[Site "Chess.com"]
[Date "2024.05.07"]
[Round "10"]
[White "Journey_to_GrandMaster_YT"]
[Black "Acva-Alenok"]
[Result "0-1"]
[WhiteElo "2507"]
[BlackElo "2361"]
[TimeControl "180+1"]
[EndTime "10:03:53 PDT"]
[Termination "Acva-Alenok won by resignation"]

1. d4 {[%clk 0:02:56.6]} 1... Nf6 {[%clk 0:02:59.9]} 2. Nf3 {[%clk 0:02:54.9]}
2... e6 {[%clk 0:02:58]} 3. e3 {[%clk 0:02:54.7]} 3... b6 {[%clk 0:02:57.8]} 4.
Bd3 {[%clk 0:02:55.2]} 4... Bb7 {[%clk 0:02:57.8]} 5. O-O {[%clk 0:02:55.9]}
5... c5 {[%clk 0:02:58.4]} 6. b3 {[%clk 0:02:56.4]} 6... cxd4 {[%clk 0:02:57]}
7. exd4 {[%clk 0:02:57.3]} 7... Be7 {[%clk 0:02:54.8]} 8. Bb2 {[%clk 0:02:57.8]}
8... O-O {[%clk 0:02:54.1]} 9. Nbd2 {[%clk 0:02:58.2]} 9... d5 {[%clk
0:02:52.2]} 10. Ne5 {[%clk 0:02:58.3]} 10... Nbd7 {[%clk 0:02:45.7]} 11. Qe2
{[%clk 0:02:58.1]} 11... Rc8 {[%clk 0:02:43.2]} 12. f4 {[%clk 0:02:55.4]} 12...
Bb4 {[%clk 0:02:25.9]} 13. Ndf3 {[%clk 0:02:48.3]} 13... Ne4 {[%clk 0:02:22.4]}
14. Bxe4 {[%clk 0:02:48.3]} 14... dxe4 {[%clk 0:02:23.2]} 15. Ng5 {[%clk
0:02:48.9]} 15... Nxe5 {[%clk 0:01:50.9]} 16. dxe5 {[%clk 0:02:49.8]} 16... e3
{[%clk 0:01:43.9]} 17. Rad1 {[%clk 0:02:39.4]} 17... Bd2 {[%clk 0:01:41.2]} 18.
c4 {[%clk 0:02:37.5]} 18... b5 {[%clk 0:01:27.1]} 19. cxb5 {[%clk 0:02:19.5]}
19... Rc2 {[%clk 0:01:12.6]} 20. Bc1 {[%clk 0:02:20]} 20... Qd4 {[%clk
0:00:45.3]} 21. a4 {[%clk 0:02:11.9]} 21... h6 {[%clk 0:00:38.2]} 22. Nf3 {[%clk
0:02:10.4]} 22... Bxf3 {[%clk 0:00:36.5]} 23. gxf3 {[%clk 0:02:01.6]} 23... Rfc8
{[%clk 0:00:36.2]} 24. Bxd2 {[%clk 0:01:45.7]} 24... Rxd2 {[%clk 0:00:34.6]} 25.
Rxd2 {[%clk 0:01:41.2]} 25... exd2+ {[%clk 0:00:33]} 26. Kg2 {[%clk 0:01:39.6]}
26... Rc1 {[%clk 0:00:15.8]} 27. Rd1 {[%clk 0:01:36.6]} 27... Rxd1 {[%clk
0:00:08.5]} 28. Qxd1 {[%clk 0:01:35.5]} 28... Qxf4 {[%clk 0:00:08.8]} 29. Kf2
{[%clk 0:01:09.3]} 29... Qxh2+ {[%clk 0:00:08.8]} 30. Ke3 {[%clk 0:01:09.9]}
30... Qxe5+ {[%clk 0:00:08.6]} 31. Kxd2 {[%clk 0:01:10.3]} 31... h5 {[%clk
0:00:07.9]} 32. Kc2 {[%clk 0:00:57.9]} 32... Qc5+ {[%clk 0:00:07.3]} 33. Kb2
{[%clk 0:00:57.1]} 33... Qf2+ {[%clk 0:00:07.3]} 34. Ka3 {[%clk 0:00:54.6]}
34... h4 {[%clk 0:00:07.9]} 35. Qd8+ {[%clk 0:00:51.2]} 35... Kh7 {[%clk
0:00:08.3]} 36. Qg5 {[%clk 0:00:51.9]} 36... g6 {[%clk 0:00:08]} 37. Qf6 {[%clk
0:00:50.7]} 37... Kg8 {[%clk 0:00:07.4]} 38. a5 {[%clk 0:00:45.5]} 38... Qc5+
{[%clk 0:00:06.9]} 39. Ka4 {[%clk 0:00:45]} 39... h3 {[%clk 0:00:06.5]} 40. Qd8+
{[%clk 0:00:41.5]} 40... Kg7 {[%clk 0:00:06.5]} 41. Qh4 {[%clk 0:00:41.1]} 41...
Qh5 {[%clk 0:00:06.8]} 42. Qd4+ {[%clk 0:00:39.8]} 42... e5 {[%clk 0:00:06.2]}
43. Qg1 {[%clk 0:00:36.9]} 43... h2 {[%clk 0:00:07.1]} 44. Qh1 {[%clk
0:00:37.5]} 44... Qh4+ {[%clk 0:00:06.9]} 45. b4 {[%clk 0:00:37.5]} 45... Qg3
{[%clk 0:00:07.3]} 46. b6 {[%clk 0:00:36.7]} 46... Qg1 {[%clk 0:00:07.6]} 47.
Qxg1 {[%clk 0:00:30.3]} 47... hxg1=Q {[%clk 0:00:08.5]} 48. b7 {[%clk
0:00:31.2]} 48... Qa1+ {[%clk 0:00:07.3]} 49. Kb5 {[%clk 0:00:31.8]} 49... Qf1+
{[%clk 0:00:07.7]} 50. Ka4 {[%clk 0:00:30.7]} 50... Qd1+ {[%clk 0:00:07.5]} 51.
Kb5 {[%clk 0:00:30.8]} 51... Qd8 {[%clk 0:00:07.3]} 52. Ka6 {[%clk 0:00:31.5]}
52... Qb8 {[%clk 0:00:07.8]} 53. b5 {[%clk 0:00:31.7]} 53... g5 {[%clk
0:00:07.5]} 54. b6 {[%clk 0:00:31.6]} 54... axb6 {[%clk 0:00:06.9]} 55. Kxb6
{[%clk 0:00:32.5]} 55... Qd8+ {[%clk 0:00:06.7]} 56. Kb5 {[%clk 0:00:27.6]}
56... e4 {[%clk 0:00:06.4]} 57. fxe4 {[%clk 0:00:27.1]} 57... g4 {[%clk
0:00:06.9]} 58. a6 {[%clk 0:00:27.6]} 58... Qc7 {[%clk 0:00:05.5]} 59. e5 {[%clk
0:00:21.6]} 59... g3 {[%clk 0:00:05.3]} 60. a7 {[%clk 0:00:22.5]} 60... Qxb7+
{[%clk 0:00:04.8]} 61. Kc4 {[%clk 0:00:23.2]} 61... g2 {[%clk 0:00:05.2]} 0-1

[Event "Early-Titled-Tuesday-Blitz-May-07-2024"]
[Site "Chess.com"]
[Date "2024.05.07"]
[Round "10"]
[White "willyam13"]
[Black "KononenkoD"]
[Result "0-1"]
[WhiteElo "2464"]
[BlackElo "2609"]
[TimeControl "180+1"]
[EndTime "10:03:54 PDT"]
[Termination "KononenkoD won by resignation"]

1. e4 {[%clk 0:03:00.9]} 1... c6 {[%clk 0:02:59.1]} 2. d4 {[%clk 0:03:00.4]}
2... d5 {[%clk 0:02:59.4]} 3. Nc3 {[%clk 0:03:01]} 3... dxe4 {[%clk 0:02:57.2]}
4. Nxe4 {[%clk 0:03:01.9]} 4... Bf5 {[%clk 0:02:57.6]} 5. Ng3 {[%clk 0:03:02.2]}
5... Bg6 {[%clk 0:02:58.1]} 6. h4 {[%clk 0:03:02.9]} 6... h6 {[%clk 0:02:58.1]}
7. Nf3 {[%clk 0:03:03.5]} 7... Nd7 {[%clk 0:02:58.5]} 8. h5 {[%clk 0:03:04.1]}
8... Bh7 {[%clk 0:02:59.1]} 9. Bd3 {[%clk 0:03:04.8]} 9... Bxd3 {[%clk
0:02:59.8]} 10. Qxd3 {[%clk 0:03:05.5]} 10... e6 {[%clk 0:03:00.7]} 11. Bd2
{[%clk 0:03:06.1]} 11... Ngf6 {[%clk 0:03:01.1]} 12. O-O-O {[%clk 0:03:06.6]}
12... Be7 {[%clk 0:03:01.7]} 13. Rhe1 {[%clk 0:02:55.7]} 13... O-O {[%clk
0:02:59.3]} 14. Qe2 {[%clk 0:02:55.4]} 14... Qc7 {[%clk 0:02:49.6]} 15. Ne5
{[%clk 0:02:42.4]} 15... c5 {[%clk 0:02:49.2]} 16. dxc5 {[%clk 0:01:47.7]} 16...
Bxc5 {[%clk 0:02:40.8]} 17. f4 {[%clk 0:01:39]} 17... Rac8 {[%clk 0:02:24.9]}
18. c3 {[%clk 0:01:38.7]} 18... Rfd8 {[%clk 0:02:19]} 19. Ne4 {[%clk 0:00:56.4]}
19... Nxe4 {[%clk 0:02:14.9]} 20. Qxe4 {[%clk 0:00:57.3]} 20... Nf6 {[%clk
0:02:13.5]} 21. Qe2 {[%clk 0:00:51.8]} 21... b5 {[%clk 0:02:12.3]} 22. Kb1
{[%clk 0:00:44.2]} 22... b4 {[%clk 0:02:09.2]} 23. g4 {[%clk 0:00:36.8]} 23...
bxc3 {[%clk 0:02:08.8]} 24. Bxc3 {[%clk 0:00:37.7]} 24... Rxd1+ {[%clk
0:02:07.1]} 25. Rxd1 {[%clk 0:00:36]} 25... Nd5 {[%clk 0:02:07.3]} 26. Bd2
{[%clk 0:00:31.7]} 26... Qb7 {[%clk 0:01:49.5]} 27. Rc1 {[%clk 0:00:30.3]} 27...
Rb8 {[%clk 0:01:44.7]} 28. Rc2 {[%clk 0:00:23.2]} 28... Bd4 {[%clk 0:01:41.9]}
29. Nc6 {[%clk 0:00:16.3]} 29... Bxb2 {[%clk 0:01:15.7]} 30. Nxb8 {[%clk
0:00:16.8]} 30... Ba3+ {[%clk 0:00:41.6]} 31. Ka1 {[%clk 0:00:16.5]} 31... Qxb8
{[%clk 0:00:35.7]} 32. Qa6 {[%clk 0:00:14]} 32... Bf8 {[%clk 0:00:15.6]} 33. Rc8
{[%clk 0:00:06.6]} 33... Qb6 {[%clk 0:00:14.7]} 34. Qxb6 {[%clk 0:00:06.3]}
34... axb6 {[%clk 0:00:15.6]} 35. Kb2 {[%clk 0:00:03.7]} 35... Kh7 {[%clk
0:00:16]} 36. Rxf8 {[%clk 0:00:02.1]} 36... f5 {[%clk 0:00:14]} 37. Rf7 {[%clk
0:00:02.4]} 37... fxg4 {[%clk 0:00:13.6]} 38. Be1 {[%clk 0:00:02.8]} 38... Ne3
{[%clk 0:00:11.8]} 39. Bf2 {[%clk 0:00:02.9]} 39... Nd1+ {[%clk 0:00:11.8]} 40.
Kc2 {[%clk 0:00:03.4]} 40... Nxf2 {[%clk 0:00:12.7]} 41. Kd2 {[%clk 0:00:03.2]}
41... g3 {[%clk 0:00:12.9]} 42. Ke2 {[%clk 0:00:03.5]} 42... Ne4 {[%clk
0:00:11.4]} 43. Kf3 {[%clk 0:00:03.6]} 43... Nc3 {[%clk 0:00:11.6]} 44. Ra7
{[%clk 0:00:03.2]} 44... b5 {[%clk 0:00:11.7]} 45. a3 {[%clk 0:00:02.6]} 45...
Nb1 {[%clk 0:00:10.3]} 46. Ra5 {[%clk 0:00:01.7]} 46... Kg8 {[%clk 0:00:09.5]}
47. Kxg3 {[%clk 0:00:02]} 47... Kf7 {[%clk 0:00:10.1]} 48. Ra7+ {[%clk
0:00:02.1]} 48... Kf6 {[%clk 0:00:10.5]} 49. Kg4 {[%clk 0:00:02.1]} 49... Nc3
{[%clk 0:00:09.5]} 50. Rc7 {[%clk 0:00:02]} 50... Nd5 {[%clk 0:00:05]} 51. Rc5
{[%clk 0:00:01.7]} 51... b4 {[%clk 0:00:04.9]} 52. a4 {[%clk 0:00:01.8]} 52...
b3 {[%clk 0:00:03.4]} 53. Rb5 {[%clk 0:00:02.3]} 53... Ne3+ {[%clk 0:00:02.3]}
54. Kf3 {[%clk 0:00:01.9]} 54... Nc4 {[%clk 0:00:02.9]} 55. Rxb3 {[%clk
0:00:02]} 55... Nd2+ {[%clk 0:00:03.3]} 56. Ke3 {[%clk 0:00:02.4]} 56... Nxb3
{[%clk 0:00:04.2]} 57. Kd3 {[%clk 0:00:02.6]} 57... Kf5 {[%clk 0:00:04.1]} 58.
Kc4 {[%clk 0:00:03.1]} 58... Na5+ {[%clk 0:00:04.2]} 59. Kb5 {[%clk 0:00:03.9]}
59... Nb7 {[%clk 0:00:04.7]} 60. Kb6 {[%clk 0:00:04.5]} 60... Nd6 {[%clk
0:00:04.6]} 61. a5 {[%clk 0:00:05.1]} 61... Nc4+ {[%clk 0:00:05.2]} 62. Kb5
{[%clk 0:00:05.6]} 62... Nxa5 {[%clk 0:00:06.1]} 63. Kxa5 {[%clk 0:00:06.5]}
63... Kxf4 {[%clk 0:00:06.9]} 0-1

[Event "Early-Titled-Tuesday-Blitz-May-07-2024"]
[Site "Chess.com"]
[Date "2024.05.07"]
[Round "10"]
[White "Aleksandar-Topalov"]
[Black "kanzaww"]
[Result "1-0"]
[WhiteElo "2413"]
[BlackElo "2497"]
[TimeControl "180+1"]
[EndTime "10:03:57 PDT"]
[Termination "Aleksandar-Topalov won by resignation"]

1. b3 {[%clk 0:03:00.9]} 1... e5 {[%clk 0:02:59.2]} 2. Bb2 {[%clk 0:03:00.5]}
2... Nc6 {[%clk 0:02:58.4]} 3. e3 {[%clk 0:02:59.6]} 3... g6 {[%clk 0:02:57.9]}
4. c4 {[%clk 0:02:58.3]} 4... Bg7 {[%clk 0:02:58.3]} 5. d3 {[%clk 0:02:58]} 5...
Nge7 {[%clk 0:02:58.8]} 6. Nf3 {[%clk 0:02:57.8]} 6... O-O {[%clk 0:02:55.6]} 7.
a3 {[%clk 0:02:57.3]} 7... d5 {[%clk 0:02:55.8]} 8. cxd5 {[%clk 0:02:57]} 8...
Nxd5 {[%clk 0:02:55.5]} 9. Qc2 {[%clk 0:02:57.2]} 9... Be6 {[%clk 0:02:51.4]}
10. Nbd2 {[%clk 0:02:55.3]} 10... Nb6 {[%clk 0:02:36.9]} 11. Be2 {[%clk
0:02:53.2]} 11... f5 {[%clk 0:02:34.3]} 12. O-O {[%clk 0:02:52.6]} 12... Qd5
{[%clk 0:02:32.7]} 13. Rfd1 {[%clk 0:02:47.3]} 13... Kh8 {[%clk 0:02:29.6]} 14.
Nc4 {[%clk 0:02:45.5]} 14... Rad8 {[%clk 0:02:29.1]} 15. d4 {[%clk 0:02:40.5]}
15... e4 {[%clk 0:02:27.1]} 16. Nfe5 {[%clk 0:02:40.5]} 16... Nxe5 {[%clk
0:02:22.4]} 17. dxe5 {[%clk 0:02:34.2]} 17... Qc6 {[%clk 0:02:20.4]} 18. a4
{[%clk 0:02:22.9]} 18... Nxc4 {[%clk 0:02:18.6]} 19. Bxc4 {[%clk 0:02:20.3]}
19... Bxc4 {[%clk 0:02:17.2]} 20. bxc4 {[%clk 0:02:19.1]} 20... Kg8 {[%clk
0:02:10.1]} 21. Qb3 {[%clk 0:02:18]} 21... Qb6 {[%clk 0:02:07.4]} 22. Qc2 {[%clk
0:02:05.2]} 22... c5 {[%clk 0:02:06.8]} 23. Rd5 {[%clk 0:02:02.7]} 23... Rfe8
{[%clk 0:01:54.7]} 24. Rad1 {[%clk 0:02:02]} 24... Qc7 {[%clk 0:01:36.8]} 25.
Qd2 {[%clk 0:01:51.5]} 25... Rxd5 {[%clk 0:01:34.2]} 26. Qxd5+ {[%clk 0:01:51]}
26... Kf8 {[%clk 0:01:27.4]} 27. Qd7 {[%clk 0:01:33.4]} 27... Qxd7 {[%clk
0:01:23]} 28. Rxd7 {[%clk 0:01:32.9]} 28... Re7 {[%clk 0:01:10.3]} 29. Rd5
{[%clk 0:01:24.3]} 29... b6 {[%clk 0:01:10.1]} 30. f4 {[%clk 0:01:22.4]} 30...
Kf7 {[%clk 0:01:06.4]} 31. Kf2 {[%clk 0:01:16.1]} 31... Ke8 {[%clk 0:01:03.7]}
32. Rd6 {[%clk 0:01:12.3]} 32... Bf8 {[%clk 0:01:02.9]} 33. Ke2 {[%clk
0:00:51.7]} 33... Rd7 {[%clk 0:01:02.7]} 34. Rxd7 {[%clk 0:00:40.7]} 34... Kxd7
{[%clk 0:01:03.6]} 35. Kd2 {[%clk 0:00:38.9]} 35... Kc6 {[%clk 0:01:01.4]} 36.
Kc2 {[%clk 0:00:38.4]} 36... Be7 {[%clk 0:01:01.6]} 37. Kb3 {[%clk 0:00:35.4]}
37... h5 {[%clk 0:00:59]} 38. Bc3 {[%clk 0:00:31.2]} 38... h4 {[%clk 0:00:54.8]}
39. Be1 {[%clk 0:00:27.8]} 39... g5 {[%clk 0:00:54.4]} 40. g3 {[%clk 0:00:23.5]}
40... h3 {[%clk 0:00:53.9]} 41. Bf2 {[%clk 0:00:21.7]} 41... a6 {[%clk
0:00:50.2]} 42. Be1 {[%clk 0:00:20.1]} 42... b5 {[%clk 0:00:49.4]} 43. axb5+
{[%clk 0:00:18.6]} 43... axb5 {[%clk 0:00:50.3]} 44. cxb5+ {[%clk 0:00:15.3]}
44... Kxb5 {[%clk 0:00:50.3]} 45. Bf2 {[%clk 0:00:13.9]} 45... c4+ {[%clk
0:00:48.2]} 46. Kc2 {[%clk 0:00:13.3]} 46... gxf4 {[%clk 0:00:44.3]} 47. gxf4
{[%clk 0:00:12.8]} 47... Bb4 {[%clk 0:00:41.1]} 48. Bh4 {[%clk 0:00:09.9]} 48...
Kc6 {[%clk 0:00:41.2]} 49. Bf2 {[%clk 0:00:08.1]} 49... Kd5 {[%clk 0:00:41.4]}
50. Bh4 {[%clk 0:00:07]} 50... Ke6 {[%clk 0:00:38.3]} 51. Bg3 {[%clk 0:00:04.4]}
51... Kf7 {[%clk 0:00:38.3]} 52. Bh4 {[%clk 0:00:03.2]} 52... Kg6 {[%clk
0:00:28.3]} 53. e6 {[%clk 0:00:03.6]} 53... Kh5 {[%clk 0:00:20.6]} 54. e7 {[%clk
0:00:03.8]} 54... Bxe7 {[%clk 0:00:20.9]} 55. Bxe7 {[%clk 0:00:03.8]} 55... Kg4
{[%clk 0:00:21.6]} 56. Bh4 {[%clk 0:00:02.2]} 56... Kf3 {[%clk 0:00:21.2]} 57.
Kd2 {[%clk 0:00:02.5]} 57... c3+ {[%clk 0:00:12.5]} 58. Kxc3 {[%clk 0:00:02.7]}
58... Kxe3 {[%clk 0:00:13.2]} 59. Bg3 {[%clk 0:00:02.5]} 59... Ke2 {[%clk
0:00:11.1]} 60. Kd4 {[%clk 0:00:02.9]} 60... e3 {[%clk 0:00:10.3]} 61. Ke5
{[%clk 0:00:03.3]} 61... Kf1 {[%clk 0:00:08.1]} 62. Kxf5 {[%clk 0:00:03.5]}
62... e2 {[%clk 0:00:08.1]} 63. Kg4 {[%clk 0:00:03.8]} 63... Kg2 {[%clk
0:00:08.3]} 64. f5 {[%clk 0:00:03.4]} 64... e1=Q {[%clk 0:00:07.8]} 65. Bxe1
{[%clk 0:00:03.5]} 65... Kxh2 {[%clk 0:00:08.5]} 66. Bg3+ {[%clk 0:00:03.8]}
66... Kg2 {[%clk 0:00:08]} 67. f6 {[%clk 0:00:04.7]} 67... h2 {[%clk 0:00:06]}
68. Bxh2 {[%clk 0:00:05]} 68... Kxh2 {[%clk 0:00:06.9]} 69. f7 {[%clk
0:00:05.4]} 69... Kg2 {[%clk 0:00:07.8]} 70. f8=Q {[%clk 0:00:05.9]} 1-0

[Event "Early-Titled-Tuesday-Blitz-May-07-2024"]
[Site "Chess.com"]
[Date "2024.05.07"]
[Round "10"]
[White "Chessdreamer2020"]
[Black "twofoxniel"]
[Result "0-1"]
[WhiteElo "2511"]
[BlackElo "2660"]
[TimeControl "180+1"]
[EndTime "10:03:58 PDT"]
[Termination "twofoxniel won by resignation"]

1. e4 {[%clk 0:03:00.6]} 1... e6 {[%clk 0:02:59.9]} 2. b3 {[%clk 0:03:00.1]}
2... d5 {[%clk 0:03:00.2]} 3. Bb2 {[%clk 0:03:01]} 3... Nf6 {[%clk 0:03:00.4]}
4. e5 {[%clk 0:03:00.3]} 4... Nfd7 {[%clk 0:03:00.4]} 5. f4 {[%clk 0:03:01.2]}
5... c5 {[%clk 0:03:00.7]} 6. Qg4 {[%clk 0:03:00.9]} 6... Nc6 {[%clk 0:02:59]}
7. Nf3 {[%clk 0:03:01.1]} 7... a6 {[%clk 0:02:42.1]} 8. Be2 {[%clk 0:03:00.9]}
8... b5 {[%clk 0:02:42.3]} 9. Nc3 {[%clk 0:03:00.8]} 9... Bb7 {[%clk 0:02:42.3]}
10. O-O {[%clk 0:02:59.2]} 10... Qc7 {[%clk 0:02:35.2]} 11. a4 {[%clk
0:02:57.1]} 11... b4 {[%clk 0:02:32]} 12. Nd1 {[%clk 0:02:56]} 12... Ne7 {[%clk
0:02:26.6]} 13. Ne3 {[%clk 0:02:54.6]} 13... h5 {[%clk 0:02:14.4]} 14. Qh3
{[%clk 0:02:54]} 14... d4 {[%clk 0:02:14.2]} 15. Nc4 {[%clk 0:02:52]} 15... Nf5
{[%clk 0:02:14.1]} 16. Bd3 {[%clk 0:02:47.4]} 16... g6 {[%clk 0:02:08.4]} 17.
Bxf5 {[%clk 0:02:45.5]} 17... gxf5 {[%clk 0:02:08.3]} 18. c3 {[%clk 0:02:42.5]}
18... dxc3 {[%clk 0:01:49.9]} 19. dxc3 {[%clk 0:02:42.3]} 19... Bd5 {[%clk
0:01:43.6]} 20. Nd6+ {[%clk 0:02:38.4]} 20... Bxd6 {[%clk 0:01:33.4]} 21. exd6
{[%clk 0:02:39.3]} 21... Qxd6 {[%clk 0:01:33.8]} 22. c4 {[%clk 0:02:39.8]} 22...
Bxf3 {[%clk 0:01:15.6]} 23. Qxf3 {[%clk 0:02:38.9]} 23... Ke7 {[%clk 0:01:15.8]}
24. Bxh8 {[%clk 0:02:36.3]} 24... Rxh8 {[%clk 0:01:15.3]} 25. Rad1 {[%clk
0:02:36.6]} 25... Qc7 {[%clk 0:01:15.6]} 26. Rfe1 {[%clk 0:02:29.4]} 26... Nf6
{[%clk 0:01:15.1]} 27. Rd3 {[%clk 0:02:18.4]} 27... Rg8 {[%clk 0:01:14.4]} 28.
Red1 {[%clk 0:02:17]} 28... Rg4 {[%clk 0:01:14.1]} 29. g3 {[%clk 0:02:13.7]}
29... h4 {[%clk 0:01:14.4]} 30. Qa8 {[%clk 0:01:53.5]} 30... hxg3 {[%clk
0:01:08.5]} 31. hxg3 {[%clk 0:01:53.4]} 31... Ne4 {[%clk 0:01:06.7]} 32. Kg2
{[%clk 0:01:34.2]} 32... a5 {[%clk 0:00:54.9]} 33. Rh1 {[%clk 0:01:32.9]} 33...
Nxg3 {[%clk 0:00:20.3]} 34. Rxg3 {[%clk 0:01:29.1]} 34... Qxf4 {[%clk
0:00:20.6]} 35. Qb7+ {[%clk 0:01:15.8]} 35... Kf6 {[%clk 0:00:20.3]} 36. Qf3
{[%clk 0:01:09.3]} 36... Qd2+ {[%clk 0:00:20.4]} 37. Qf2 {[%clk 0:01:09.1]}
37... Rxg3+ {[%clk 0:00:17.2]} 38. Kxg3 {[%clk 0:01:09.4]} 38... Qg5+ {[%clk
0:00:17.1]} 39. Kh2 {[%clk 0:01:09.6]} 39... Qh5+ {[%clk 0:00:16.5]} 40. Kg2
{[%clk 0:01:07.1]} 40... Qg4+ {[%clk 0:00:17.1]} 41. Qg3 {[%clk 0:01:06.4]}
41... Qe2+ {[%clk 0:00:17.5]} 42. Kh3 {[%clk 0:01:06.8]} 42... e5 {[%clk
0:00:15.3]} 43. Rg1 {[%clk 0:00:59.5]} 43... Ke6 {[%clk 0:00:14.5]} 44. Kh4
{[%clk 0:00:52.4]} 44... Qd2 {[%clk 0:00:12.3]} 45. Kh5 {[%clk 0:00:47.2]} 45...
Qe2+ {[%clk 0:00:10.6]} 46. Kh6 {[%clk 0:00:46.9]} 46... Qd2+ {[%clk 0:00:09.5]}
47. Kg7 {[%clk 0:00:46.6]} 47... Qd8 {[%clk 0:00:09.2]} 48. Qg5 {[%clk 0:00:38]}
48... f6 {[%clk 0:00:09.5]} 49. Qg6 {[%clk 0:00:35.8]} 49... Qe7+ {[%clk
0:00:09.9]} 50. Kh8 {[%clk 0:00:33.8]} 50... Qf8+ {[%clk 0:00:10.1]} 51. Qg8+
{[%clk 0:00:34.1]} 51... Qxg8+ {[%clk 0:00:09.7]} 52. Kxg8 {[%clk 0:00:35]}
52... e4 {[%clk 0:00:10.5]} 53. Kg7 {[%clk 0:00:35.5]} 53... f4 {[%clk
0:00:10.7]} 54. Rg6 {[%clk 0:00:34.9]} 54... Ke5 {[%clk 0:00:08.8]} 55. Rxf6
{[%clk 0:00:34.1]} 55... e3 {[%clk 0:00:09.4]} 56. Rf8 {[%clk 0:00:26.9]} 56...
Ke4 {[%clk 0:00:09.5]} 57. Kg6 {[%clk 0:00:27.2]} 57... f3 {[%clk 0:00:10.1]}
58. Re8+ {[%clk 0:00:27.1]} 58... Kd3 {[%clk 0:00:10.3]} 59. Rd8+ {[%clk
0:00:27.3]} 59... Ke2 {[%clk 0:00:10.4]} 60. Rd5 {[%clk 0:00:22.9]} 60... f2
{[%clk 0:00:10.8]} 61. Rxc5 {[%clk 0:00:23.4]} 61... f1=Q {[%clk 0:00:11.1]} 62.
Rxa5 {[%clk 0:00:23.9]} 62... Qg2+ {[%clk 0:00:11.6]} 63. Rg5 {[%clk 0:00:24.1]}
63... Qxg5+ {[%clk 0:00:10.9]} 64. Kxg5 {[%clk 0:00:25]} 64... Kf3 {[%clk
0:00:11.5]} 65. a5 {[%clk 0:00:25.2]} 65... e2 {[%clk 0:00:12.3]} 66. a6 {[%clk
0:00:24.6]} 66... e1=Q {[%clk 0:00:13]} 67. a7 {[%clk 0:00:24]} 67... Qe7+
{[%clk 0:00:13.6]} 68. Kf5 {[%clk 0:00:23.8]} 68... Qxa7 {[%clk 0:00:14.5]} 0-1

[Event "Early-Titled-Tuesday-Blitz-May-07-2024"]
[Site "Chess.com"]
[Date "2024.05.07"]
[Round "10"]
[White "NigiriSushies"]
[Black "ural58"]
[Result "1-0"]
[WhiteElo "2424"]
[BlackElo "2509"]
[TimeControl "180+1"]
[EndTime "10:04:01 PDT"]
[Termination "NigiriSushies won on time"]

1. e4 {[%clk 0:03:00.4]} 1... e5 {[%clk 0:02:27.6]} 2. Nf3 {[%clk 0:02:59.4]}
2... Nc6 {[%clk 0:02:26.3]} 3. d4 {[%clk 0:02:59.2]} 3... exd4 {[%clk
0:02:24.7]} 4. Bc4 {[%clk 0:02:59.6]} 4... Nf6 {[%clk 0:02:21.9]} 5. O-O {[%clk
0:02:59.3]} 5... Nxe4 {[%clk 0:02:21.3]} 6. Re1 {[%clk 0:02:59.5]} 6... d5
{[%clk 0:02:21.3]} 7. Bxd5 {[%clk 0:03:00.2]} 7... Qxd5 {[%clk 0:02:20.9]} 8.
Nc3 {[%clk 0:03:00.9]} 8... Qa5 {[%clk 0:02:04.7]} 9. Nxe4 {[%clk 0:02:58.1]}
9... Be6 {[%clk 0:02:03.5]} 10. Bg5 {[%clk 0:02:51.2]} 10... h6 {[%clk 0:02:01]}
11. Bh4 {[%clk 0:02:50.1]} 11... Bb4 {[%clk 0:01:59.1]} 12. Re2 {[%clk 0:02:20]}
12... O-O {[%clk 0:01:57.6]} 13. Nxd4 {[%clk 0:02:15.4]} 13... Nxd4 {[%clk
0:01:56.6]} 14. Qxd4 {[%clk 0:02:16.3]} 14... Rfe8 {[%clk 0:01:50.1]} 15. a3
{[%clk 0:02:06.4]} 15... Be7 {[%clk 0:01:46.2]} 16. Bxe7 {[%clk 0:02:04.3]}
16... Rxe7 {[%clk 0:01:46.3]} 17. Rae1 {[%clk 0:02:04.4]} 17... Rae8 {[%clk
0:01:45.3]} 18. h3 {[%clk 0:01:51.2]} 18... Kf8 {[%clk 0:01:36.9]} 19. Nc5
{[%clk 0:01:43.3]} 19... Qb6 {[%clk 0:01:19]} 20. b4 {[%clk 0:00:47.1]} 20...
Qc6 {[%clk 0:00:54.8]} 21. Re3 {[%clk 0:00:25.1]} 21... b6 {[%clk 0:00:45]} 22.
Rg3 {[%clk 0:00:23.3]} 22... f6 {[%clk 0:00:41.1]} 23. Nxe6+ {[%clk 0:00:15]}
23... Rxe6 {[%clk 0:00:41.1]} 24. Rxe6 {[%clk 0:00:15.2]} 24... Rxe6 {[%clk
0:00:34.1]} 25. Qd8+ {[%clk 0:00:15.3]} 25... Re8 {[%clk 0:00:33.6]} 26. Qd3
{[%clk 0:00:15.8]} 26... Qe4 {[%clk 0:00:21.4]} 27. Qd7 {[%clk 0:00:08.8]} 27...
Qe1+ {[%clk 0:00:20.7]} 28. Kh2 {[%clk 0:00:08.8]} 28... Qe7 {[%clk 0:00:21.3]}
29. Qd3 {[%clk 0:00:06.2]} 29... Qe5 {[%clk 0:00:21.1]} 30. Qh7 {[%clk 0:00:06]}
30... f5 {[%clk 0:00:13.4]} 31. f4 {[%clk 0:00:03.8]} 31... Qf6 {[%clk
0:00:12.9]} 32. Rg6 {[%clk 0:00:03.3]} 32... Qf7 {[%clk 0:00:13.2]} 33. Rg3
{[%clk 0:00:03]} 33... Re7 {[%clk 0:00:12.1]} 34. Qh8+ {[%clk 0:00:02.5]} 34...
Qg8 {[%clk 0:00:12.3]} 35. Qxg8+ {[%clk 0:00:02.7]} 35... Kxg8 {[%clk 0:00:13]}
36. Rd3 {[%clk 0:00:03.1]} 36... Kf7 {[%clk 0:00:13.3]} 37. Rd2 {[%clk 0:00:02]}
37... Ke8 {[%clk 0:00:12.7]} 38. c3 {[%clk 0:00:01.8]} 38... Re4 {[%clk
0:00:11.9]} 39. Rc2 {[%clk 0:00:02.2]} 39... Rxf4 {[%clk 0:00:11.8]} 40. Kg3
{[%clk 0:00:02.8]} 40... Re4 {[%clk 0:00:12.1]} 41. Rf2 {[%clk 0:00:02.6]} 41...
g6 {[%clk 0:00:11.8]} 42. Rf3 {[%clk 0:00:02.2]} 42... Ke7 {[%clk 0:00:11.4]}
43. Rd3 {[%clk 0:00:01.4]} 43... g5 {[%clk 0:00:10]} 44. Kf3 {[%clk 0:00:01.5]}
44... Re6 {[%clk 0:00:09.5]} 45. g4 {[%clk 0:00:01.6]} 45... f4 {[%clk
0:00:07.7]} 46. h4 {[%clk 0:00:01.9]} 46... Kf6 {[%clk 0:00:06.7]} 47. hxg5+
{[%clk 0:00:01.6]} 47... hxg5 {[%clk 0:00:07.4]} 48. c4 {[%clk 0:00:01.3]} 48...
c6 {[%clk 0:00:07.2]} 49. c5 {[%clk 0:00:01.4]} 49... bxc5 {[%clk 0:00:07.1]}
50. bxc5 {[%clk 0:00:02.3]} 50... Ke7 {[%clk 0:00:06.9]} 51. Rb3 {[%clk
0:00:01.1]} 51... Re5 {[%clk 0:00:06.5]} 52. Rb7+ {[%clk 0:00:01.7]} 52... Ke6
{[%clk 0:00:06.7]} 53. Rxa7 {[%clk 0:00:01.2]} 53... Rxc5 {[%clk 0:00:06.9]} 54.
Rg7 {[%clk 0:00:01.7]} 54... Kd6 {[%clk 0:00:06.1]} 55. Rg6+ {[%clk 0:00:01.8]}
55... Kc7 {[%clk 0:00:06.1]} 56. a4 {[%clk 0:00:02.2]} 56... Kb6 {[%clk
0:00:06.3]} 57. Rf6 {[%clk 0:00:02.8]} 57... Ka5 {[%clk 0:00:05.8]} 58. Rf5
{[%clk 0:00:03.1]} 58... Kb4 {[%clk 0:00:04.7]} 59. Kf2 {[%clk 0:00:02.8]} 59...
Rc2+ {[%clk 0:00:04.2]} 60. Kf3 {[%clk 0:00:03.1]} 60... Rc3+ {[%clk 0:00:04.3]}
61. Kf2 {[%clk 0:00:03.3]} 61... c5 {[%clk 0:00:03.8]} 62. Rxg5 {[%clk
0:00:03.6]} 62... Kxa4 {[%clk 0:00:02.6]} 63. Rf5 {[%clk 0:00:04.2]} 63... f3
{[%clk 0:00:01.3]} 64. g5 {[%clk 0:00:04.6]} 64... Kb3 {[%clk 0:00:00.1]} 65.
Rxf3 {[%clk 0:00:04.6]} 1-0